[Event "Betsys MČR v online bleskovém šachu 2021"]
[Site "Chess.com"]
[Date "2021.04.17"]
[Round "9"]
[White "kaprasov"]
[Black "SamikGame"]
[Result "1-0"]
[WhiteElo "1871"]
[BlackElo "1671"]
[TimeControl "180+1"]
[EndTime "10:31:14 PDT"]
[Termination "Uživatel kaprasov zvítězil na čas"]

1. d4 {[%clk 0:02:57.3]} 1... d5 {[%clk 0:02:56.5]} 2. Bf4 {[%clk 0:02:56.9]}
2... Nf6 {[%clk 0:02:47.4]} 3. e3 {[%clk 0:02:57]} 3... e6 {[%clk 0:02:42]} 4.
Nd2 {[%clk 0:02:57.2]} 4... Bd6 {[%clk 0:02:36.3]} 5. Bg3 {[%clk 0:02:57.3]}
5... O-O {[%clk 0:02:33.3]} 6. Ngf3 {[%clk 0:02:57.1]} 6... b6 {[%clk
0:02:23.7]} 7. Bd3 {[%clk 0:02:55.2]} 7... Bb7 {[%clk 0:02:20.2]} 8. c3 {[%clk
0:02:48.6]} 8... Ne4 {[%clk 0:02:11.8]} 9. Bxd6 {[%clk 0:02:45.1]} 9... Qxd6
{[%clk 0:02:07.2]} 10. Ne5 {[%clk 0:02:40.5]} 10... Nxd2 {[%clk 0:02:02.2]} 11.
Qxd2 {[%clk 0:02:38.7]} 11... f6 {[%clk 0:02:00]} 12. Nf3 {[%clk 0:02:26.6]}
12... c5 {[%clk 0:01:54.9]} 13. Qc2 {[%clk 0:02:15.2]} 13... h6 {[%clk
0:01:50.9]} 14. Bh7+ {[%clk 0:02:08.2]} 14... Kh8 {[%clk 0:01:47]} 15. Nh4
{[%clk 0:02:08.2]} 15... f5 {[%clk 0:01:43.2]} 16. Bg6 {[%clk 0:01:59]} 16...
Nd7 {[%clk 0:01:29.9]} 17. f4 {[%clk 0:01:58.4]} 17... cxd4 {[%clk 0:01:25.2]}
18. cxd4 {[%clk 0:01:57.5]} 18... Rac8 {[%clk 0:01:10.9]} 19. Qd2 {[%clk
0:01:54.7]} 19... Rc7 {[%clk 0:01:01.6]} 20. Bh5 {[%clk 0:01:54.3]} 20... Rfc8
{[%clk 0:00:57]} 21. Bd1 {[%clk 0:01:53.3]} 21... Nf6 {[%clk 0:00:49.5]} 22. O-O
{[%clk 0:01:48.5]} 22... Ne4 {[%clk 0:00:42.7]} 23. Qe2 {[%clk 0:01:48.4]} 23...
Qb4 {[%clk 0:00:23.8]} 24. Bb3 {[%clk 0:01:26.9]} 24... a5 {[%clk 0:00:20.4]}
25. Qe1 {[%clk 0:01:16.8]} 25... Qxe1 {[%clk 0:00:19.4]} 26. Rfxe1 {[%clk
0:01:16.9]} 26... g5 {[%clk 0:00:16.6]} 27. fxg5 {[%clk 0:00:59.1]} 27... hxg5
{[%clk 0:00:17.5]} 28. Ng6+ {[%clk 0:00:59.1]} 28... Kg7 {[%clk 0:00:15]} 29.
Ne5 {[%clk 0:00:59.3]} 29... Bc6 {[%clk 0:00:11]} 30. Rac1 {[%clk 0:00:56.1]}
30... Nd2 {[%clk 0:00:09.6]} 31. Rc2 {[%clk 0:00:25.7]} 31... Nxb3 {[%clk
0:00:08.8]} 32. axb3 {[%clk 0:00:25.9]} 32... Be8 {[%clk 0:00:08.6]} 33. Rxc7+
{[%clk 0:00:21.8]} 33... Rxc7 {[%clk 0:00:09.5]} 34. Re2 {[%clk 0:00:21.9]}
34... Bb5 {[%clk 0:00:09]} 35. Rd2 {[%clk 0:00:21.3]} 35... f4 {[%clk
0:00:08.1]} 36. Kf2 {[%clk 0:00:19.7]} 36... fxe3+ {[%clk 0:00:08.1]} 37. Kxe3
{[%clk 0:00:19.7]} 37... Kf6 {[%clk 0:00:08.4]} 38. h3 {[%clk 0:00:18.3]} 38...
Be8 {[%clk 0:00:06.9]} 39. Rf2+ {[%clk 0:00:18]} 39... Kg7 {[%clk 0:00:06.4]}
40. Rd2 {[%clk 0:00:17.1]} 40... Kf6 {[%clk 0:00:05.1]} 41. g3 {[%clk
0:00:16.2]} 41... Bg6 {[%clk 0:00:04.1]} 42. Ng4+ {[%clk 0:00:15.3]} 42... Kg7
{[%clk 0:00:04]} 43. Ne5 {[%clk 0:00:15.1]} 43... Kf6 {[%clk 0:00:03.5]} 44.
Rf2+ {[%clk 0:00:15.2]} 44... Kg7 {[%clk 0:00:03.9]} 45. h4 {[%clk 0:00:15.5]}
45... gxh4 {[%clk 0:00:03.9]} 46. gxh4 {[%clk 0:00:15.8]} 46... Re7 {[%clk
0:00:03.9]} 47. Rg2 {[%clk 0:00:15.5]} 47... Kf8 {[%clk 0:00:01.7]} 48. Nxg6+
{[%clk 0:00:14.2]} 48... Kf7 {[%clk 0:00:02.4]} 49. Nxe7 {[%clk 0:00:14.4]}
49... Kxe7 {[%clk 0:00:03.1]} 50. h5 {[%clk 0:00:14.5]} 50... Kd6 {[%clk
0:00:04]} 51. h6 {[%clk 0:00:15.1]} 1-0

[Event "Betsys MČR v online bleskovém šachu 2021"]
[Site "Chess.com"]
[Date "2021.04.17"]
[Round "9"]
[White "bezzuton"]
[Black "conysek"]
[Result "0-1"]
[WhiteElo "1544"]
[BlackElo "2124"]
[TimeControl "180+1"]
[EndTime "10:31:15 PDT"]
[Termination "Uživatel conysek zvítězil na čas"]

1. d4 {[%clk 0:03:00.6]} 1... e6 {[%clk 0:02:58.8]} 2. e4 {[%clk 0:02:59.7]}
2... c5 {[%clk 0:02:59.1]} 3. d5 {[%clk 0:02:53.9]} 3... exd5 {[%clk 0:02:57.9]}
4. exd5 {[%clk 0:02:53.5]} 4... d6 {[%clk 0:02:58.1]} 5. c4 {[%clk 0:02:52.8]}
5... Bf5 {[%clk 0:02:57.4]} 6. Bd3 {[%clk 0:02:50]} 6... Bg6 {[%clk 0:02:50.5]}
7. Ne2 {[%clk 0:02:45.3]} 7... Nf6 {[%clk 0:02:48.8]} 8. O-O {[%clk 0:02:41.5]}
8... Be7 {[%clk 0:02:48.4]} 9. Bf4 {[%clk 0:02:39.6]} 9... Nbd7 {[%clk
0:02:47.2]} 10. Bxg6 {[%clk 0:02:34]} 10... hxg6 {[%clk 0:02:47]} 11. Nbc3
{[%clk 0:02:29.6]} 11... Nh5 {[%clk 0:02:45.8]} 12. Bd2 {[%clk 0:02:21.8]} 12...
a6 {[%clk 0:02:45]} 13. Ng3 {[%clk 0:02:19.7]} 13... Nxg3 {[%clk 0:02:44.4]} 14.
fxg3 {[%clk 0:02:19.7]} 14... Bf6 {[%clk 0:02:41.3]} 15. Qe2+ {[%clk 0:02:16.2]}
15... Ne5 {[%clk 0:02:28.5]} 16. Ne4 {[%clk 0:02:14.1]} 16... Qe7 {[%clk
0:02:16.4]} 17. Nxf6+ {[%clk 0:02:05.2]} 17... gxf6 {[%clk 0:02:15.8]} 18. b3
{[%clk 0:02:04.3]} 18... O-O-O {[%clk 0:02:13]} 19. Qf2 {[%clk 0:02:00.8]} 19...
f5 {[%clk 0:02:09.7]} 20. Bc3 {[%clk 0:01:58]} 20... Rde8 {[%clk 0:02:05.7]} 21.
Rfe1 {[%clk 0:01:49.1]} 21... Qc7 {[%clk 0:01:52.8]} 22. Rab1 {[%clk 0:01:41.7]}
22... Nd3 {[%clk 0:01:42.5]} 23. Rxe8+ {[%clk 0:01:31.1]} 23... Rxe8 {[%clk
0:01:43.4]} 24. Qd2 {[%clk 0:01:29.6]} 24... Ne5 {[%clk 0:01:39.9]} 25. b4
{[%clk 0:01:27]} 25... Nxc4 {[%clk 0:01:36.5]} 26. Qd3 {[%clk 0:01:19.1]} 26...
Ne5 {[%clk 0:01:35.6]} 27. Qf1 {[%clk 0:01:14]} 27... c4 {[%clk 0:01:28.9]} 28.
Rc1 {[%clk 0:01:09.7]} 28... b5 {[%clk 0:01:27.8]} 29. a4 {[%clk 0:01:04.9]}
29... Ng4 {[%clk 0:01:25.5]} 30. axb5 {[%clk 0:00:49.6]} 30... axb5 {[%clk
0:01:26.4]} 31. h3 {[%clk 0:00:46.2]} 31... Qb6+ {[%clk 0:01:24.9]} 32. Kh1
{[%clk 0:00:42.4]} 32... Ne3 {[%clk 0:01:05.8]} 33. Qf2 {[%clk 0:00:41.7]} 33...
Nxd5 {[%clk 0:01:02.8]} 34. Bd4 {[%clk 0:00:36.6]} 34... Qb7 {[%clk 0:00:56.9]}
35. Ra1 {[%clk 0:00:19.9]} 35... Nc7 {[%clk 0:00:49.9]} 36. Ra7 {[%clk
0:00:17.8]} 36... Qd5 {[%clk 0:00:49.1]} 37. Bb6 {[%clk 0:00:17.6]} 37... Re7
{[%clk 0:00:46.8]} 38. Qa2 {[%clk 0:00:10.5]} 38... Qd1+ {[%clk 0:00:45.6]} 39.
Kh2 {[%clk 0:00:07.4]} 39... c3 {[%clk 0:00:39.9]} 40. Bxc7 {[%clk 0:00:04]}
40... Rxc7 {[%clk 0:00:38.2]} 41. Qa6+ {[%clk 0:00:03.5]} 41... Kd8 {[%clk
0:00:32.8]} 42. Qb6 {[%clk 0:00:03.3]} 42... Kd7 {[%clk 0:00:12.8]} 43. Qxc7+
{[%clk 0:00:04.2]} 43... Ke6 {[%clk 0:00:13.3]} 44. Qe7+ {[%clk 0:00:02.1]}
44... Kd5 {[%clk 0:00:13.2]} 45. Qb7+ {[%clk 0:00:03]} 45... Kc4 {[%clk
0:00:11.9]} 46. Qc6+ {[%clk 0:00:02.9]} 46... Kb3 {[%clk 0:00:12.1]} 0-1

[Event "Betsys MČR v online bleskovém šachu 2021"]
[Site "Chess.com"]
[Date "2021.04.17"]
[Round "9"]
[White "DONSANMIGUEL"]
[Black "indebol"]
[Result "0-1"]
[WhiteElo "1797"]
[BlackElo "1560"]
[TimeControl "180+1"]
[EndTime "10:31:16 PDT"]
[Termination "Uživatel indebol zvítězil na čas"]

1. Nf3 {[%clk 0:03:00.9]} 1... Nf6 {[%clk 0:02:59.1]} 2. a4 {[%clk 0:03:01.8]}
2... g6 {[%clk 0:02:58.8]} 3. d3 {[%clk 0:03:02.7]} 3... Bg7 {[%clk 0:02:59.5]}
4. Nbd2 {[%clk 0:03:03.6]} 4... O-O {[%clk 0:03:00]} 5. e3 {[%clk 0:03:04.5]}
5... d6 {[%clk 0:03:00.3]} 6. Be2 {[%clk 0:03:05.4]} 6... c5 {[%clk 0:03:00.9]}
7. h3 {[%clk 0:03:06.2]} 7... Nc6 {[%clk 0:03:00.6]} 8. Nf1 {[%clk 0:03:07.1]}
8... b6 {[%clk 0:03:00.9]} 9. Ng3 {[%clk 0:03:08]} 9... Bb7 {[%clk 0:03:01.7]}
10. Nh2 {[%clk 0:03:08.2]} 10... d5 {[%clk 0:03:00.3]} 11. Bd2 {[%clk
0:03:04.8]} 11... e5 {[%clk 0:03:00.3]} 12. Ng4 {[%clk 0:03:03.6]} 12... e4
{[%clk 0:03:00.1]} 13. Nxf6+ {[%clk 0:02:57.6]} 13... Bxf6 {[%clk 0:02:58.6]}
14. dxe4 {[%clk 0:02:51.6]} 14... dxe4 {[%clk 0:02:56.1]} 15. c3 {[%clk
0:02:42.9]} 15... Ne5 {[%clk 0:02:47.9]} 16. O-O {[%clk 0:02:35.9]} 16... Qc7
{[%clk 0:02:31.1]} 17. Qc2 {[%clk 0:02:32.1]} 17... Qc6 {[%clk 0:02:22.5]} 18.
Bb5 {[%clk 0:02:26.7]} 18... Qd5 {[%clk 0:02:18.6]} 19. Rad1 {[%clk 0:02:21.2]}
19... Nd3 {[%clk 0:02:04.9]} 20. a5 {[%clk 0:01:55.7]} 20... Rad8 {[%clk
0:02:03.9]} 21. a6 {[%clk 0:01:50.7]} 21... Ba8 {[%clk 0:02:03.4]} 22. b3 {[%clk
0:01:37.2]} 22... Rd6 {[%clk 0:01:44.9]} 23. c4 {[%clk 0:01:34]} 23... Qe6
{[%clk 0:01:44.3]} 24. Bc3 {[%clk 0:01:32]} 24... Bxc3 {[%clk 0:01:32]} 25. Qxc3
{[%clk 0:01:32.9]} 25... Rfd8 {[%clk 0:01:32.2]} 26. Ne2 {[%clk 0:01:26.4]}
26... f5 {[%clk 0:01:26.1]} 27. Nc1 {[%clk 0:01:08.2]} 27... Kf7 {[%clk
0:01:25]} 28. Nxd3 {[%clk 0:01:06.2]} 28... Rxd3 {[%clk 0:01:25.9]} 29. Qc2
{[%clk 0:00:59.5]} 29... Qd6 {[%clk 0:01:18.6]} 30. Rxd3 {[%clk 0:00:50.3]}
30... Qxd3 {[%clk 0:01:19.5]} 31. Qb2 {[%clk 0:00:50.4]} 31... Kg8 {[%clk
0:01:10.7]} 32. Qf6 {[%clk 0:00:42.5]} 32... Qd6 {[%clk 0:01:08.5]} 33. Qg5
{[%clk 0:00:36.6]} 33... Kg7 {[%clk 0:01:04.5]} 34. Qh4 {[%clk 0:00:19.3]} 34...
h6 {[%clk 0:01:04.3]} 35. g4 {[%clk 0:00:16.3]} 35... g5 {[%clk 0:01:00.5]} 36.
Qh5 {[%clk 0:00:14.2]} 36... Qg6 {[%clk 0:00:54.9]} 37. Qxg6+ {[%clk 0:00:10.6]}
37... Kxg6 {[%clk 0:00:55.8]} 38. gxf5+ {[%clk 0:00:10.8]} 38... Kxf5 {[%clk
0:00:56.7]} 39. Kg2 {[%clk 0:00:11.1]} 39... h5 {[%clk 0:00:55.6]} 40. Rg1
{[%clk 0:00:10.7]} 40... Rd2 {[%clk 0:00:54.5]} 41. Kg3 {[%clk 0:00:10.1]} 41...
h4+ {[%clk 0:00:53.2]} 42. Kg2 {[%clk 0:00:09.3]} 42... Rd3 {[%clk 0:00:49.8]}
43. Rb1 {[%clk 0:00:08.7]} 43... g4 {[%clk 0:00:48.5]} 44. hxg4+ {[%clk
0:00:08]} 44... Kxg4 {[%clk 0:00:49.4]} 45. b4 {[%clk 0:00:07]} 45... cxb4
{[%clk 0:00:47.3]} 46. Rxb4 {[%clk 0:00:07.2]} 46... h3+ {[%clk 0:00:47.8]} 47.
Kh2 {[%clk 0:00:07]} 47... Rd1 {[%clk 0:00:44.8]} 48. Bd7+ {[%clk 0:00:05.8]}
48... Kh4 {[%clk 0:00:43.8]} 49. Bxh3 {[%clk 0:00:05.3]} 49... Rd2 {[%clk
0:00:39.5]} 50. Kg2 {[%clk 0:00:04.3]} 50... Ra2 {[%clk 0:00:39.4]} 51. c5
{[%clk 0:00:03.9]} 51... Rxa6 {[%clk 0:00:38.8]} 52. cxb6 {[%clk 0:00:03.6]}
52... Rxb6 {[%clk 0:00:39.7]} 53. Rc4 {[%clk 0:00:02.5]} 53... Rg6+ {[%clk
0:00:39]} 54. Kh2 {[%clk 0:00:01.5]} 54... a5 {[%clk 0:00:36.2]} 55. Rc8 {[%clk
0:00:01.4]} 55... Bd5 {[%clk 0:00:34.6]} 0-1

[Event "Betsys MČR v online bleskovém šachu 2021"]
[Site "Chess.com"]
[Date "2021.04.17"]
[Round "9"]
[White "domecek"]
[Black "nw_tynka"]
[Result "0-1"]
[WhiteElo "1969"]
[BlackElo "2183"]
[TimeControl "180+1"]
[EndTime "10:31:17 PDT"]
[Termination "Uživatel nw_tynka zvítězil na čas"]

1. d4 {[%clk 0:03:00.9]} 1... Nf6 {[%clk 0:02:59.3]} 2. Nf3 {[%clk 0:03:01.2]}
2... g6 {[%clk 0:02:58.7]} 3. g3 {[%clk 0:03:01.6]} 3... Bg7 {[%clk 0:02:58.2]}
4. Bg2 {[%clk 0:03:01.6]} 4... d5 {[%clk 0:02:57.7]} 5. O-O {[%clk 0:03:01.8]}
5... O-O {[%clk 0:02:57.9]} 6. b3 {[%clk 0:03:02.1]} 6... c5 {[%clk 0:02:55.8]}
7. e3 {[%clk 0:03:02.4]} 7... Nc6 {[%clk 0:02:54.6]} 8. Bb2 {[%clk 0:03:02]}
8... Qb6 {[%clk 0:02:37.7]} 9. Nc3 {[%clk 0:02:57.2]} 9... cxd4 {[%clk
0:02:35.2]} 10. Na4 {[%clk 0:02:55.2]} 10... Qc7 {[%clk 0:02:22.6]} 11. exd4
{[%clk 0:02:55.2]} 11... Bf5 {[%clk 0:02:16.7]} 12. c4 {[%clk 0:02:43.3]} 12...
dxc4 {[%clk 0:02:00.5]} 13. bxc4 {[%clk 0:02:42.8]} 13... Na5 {[%clk 0:01:59.8]}
14. c5 {[%clk 0:02:12.2]} 14... Rad8 {[%clk 0:01:51.1]} 15. Qe2 {[%clk
0:02:07.2]} 15... Nc6 {[%clk 0:01:48.2]} 16. Rfd1 {[%clk 0:02:05.3]} 16... Nd5
{[%clk 0:01:39.6]} 17. Rac1 {[%clk 0:02:02.4]} 17... Rfe8 {[%clk 0:01:24]} 18.
Qb5 {[%clk 0:01:44.9]} 18... Qd7 {[%clk 0:01:19.1]} 19. Nc3 {[%clk 0:01:37]}
19... Nxc3 {[%clk 0:01:17.5]} 20. Bxc3 {[%clk 0:01:36.7]} 20... Be6 {[%clk
0:01:05.1]} 21. d5 {[%clk 0:01:31]} 21... Bxd5 {[%clk 0:00:58.5]} 22. Bxg7
{[%clk 0:01:29]} 22... Kxg7 {[%clk 0:00:57.2]} 23. Nd4 {[%clk 0:01:18.7]} 23...
Nxd4 {[%clk 0:00:51]} 24. Qxd7 {[%clk 0:01:17.8]} 24... Rxd7 {[%clk 0:00:49.6]}
25. Rxd4 {[%clk 0:01:13.4]} 25... e6 {[%clk 0:00:44.3]} 26. Bxd5 {[%clk
0:01:11.3]} 26... exd5 {[%clk 0:00:34.4]} 27. c6 {[%clk 0:01:10.1]} 27... bxc6
{[%clk 0:00:33.2]} 28. Rxc6 {[%clk 0:01:09.2]} 28... Re4 {[%clk 0:00:20.7]} 29.
Rcc4 {[%clk 0:00:46.7]} 29... Rxd4 {[%clk 0:00:19.7]} 30. Rxd4 {[%clk 0:00:46]}
30... g5 {[%clk 0:00:18.4]} 31. f4 {[%clk 0:00:44.6]} 31... gxf4 {[%clk
0:00:14.4]} 32. Rxf4 {[%clk 0:00:44.8]} 32... d4 {[%clk 0:00:13.1]} 33. Kf2
{[%clk 0:00:44.6]} 33... Rd5 {[%clk 0:00:12.2]} 34. Ke1 {[%clk 0:00:39.9]} 34...
Ra5 {[%clk 0:00:10.8]} 35. Rf2 {[%clk 0:00:30.5]} 35... Ra3 {[%clk 0:00:10.7]}
36. Rd2 {[%clk 0:00:29.4]} 36... d3 {[%clk 0:00:10]} 37. Kf2 {[%clk 0:00:29.3]}
37... Kf6 {[%clk 0:00:08.9]} 38. Ke3 {[%clk 0:00:29.5]} 38... Ke5 {[%clk
0:00:07.1]} 39. h4 {[%clk 0:00:20.2]} 39... f5 {[%clk 0:00:06.1]} 40. Rf2 {[%clk
0:00:17.2]} 40... d2+ {[%clk 0:00:04]} 41. Kxd2 {[%clk 0:00:14.9]} 41... Rxa2+
{[%clk 0:00:04]} 42. Ke3 {[%clk 0:00:14.4]} 42... Rxf2 {[%clk 0:00:04.3]} 43.
Kxf2 {[%clk 0:00:13.8]} 43... Ke4 {[%clk 0:00:04.4]} 0-1

[Event "Betsys MČR v online bleskovém šachu 2021"]
[Site "Chess.com"]
[Date "2021.04.17"]
[Round "9"]
[White "PremetFugas"]
[Black "zdenav"]
[Result "0-1"]
[WhiteElo "2109"]
[BlackElo "1861"]
[TimeControl "180+1"]
[EndTime "10:31:20 PDT"]
[Termination "Uživatel zdenav zvítězil na čas"]

1. e4 {[%clk 0:02:57.7]} 1... e5 {[%clk 0:02:58.6]} 2. Bc4 {[%clk 0:02:55.7]}
2... Nf6 {[%clk 0:02:58.4]} 3. d3 {[%clk 0:02:55.2]} 3... d6 {[%clk 0:02:58.3]}
4. h3 {[%clk 0:02:50.4]} 4... c6 {[%clk 0:02:57.7]} 5. Qe2 {[%clk 0:02:48.1]}
5... Nbd7 {[%clk 0:02:57.3]} 6. Nc3 {[%clk 0:02:46.9]} 6... b5 {[%clk 0:02:57]}
7. Bb3 {[%clk 0:02:46.6]} 7... Nc5 {[%clk 0:02:56.6]} 8. Nf3 {[%clk 0:02:42.8]}
8... a5 {[%clk 0:02:55.5]} 9. a4 {[%clk 0:02:29.2]} 9... b4 {[%clk 0:02:54.3]}
10. Nb1 {[%clk 0:02:27.9]} 10... Nxb3 {[%clk 0:02:53.6]} 11. cxb3 {[%clk
0:02:28]} 11... Ba6 {[%clk 0:02:51.4]} 12. Qc2 {[%clk 0:02:23.2]} 12... c5
{[%clk 0:02:51.2]} 13. Be3 {[%clk 0:02:19.1]} 13... Be7 {[%clk 0:02:50.2]} 14.
Nbd2 {[%clk 0:02:18.8]} 14... O-O {[%clk 0:02:49.9]} 15. Nc4 {[%clk 0:02:17.2]}
15... Ne8 {[%clk 0:02:48.9]} 16. O-O {[%clk 0:02:15.3]} 16... Bb7 {[%clk
0:02:40.8]} 17. Nfd2 {[%clk 0:02:11.1]} 17... Nc7 {[%clk 0:02:35.7]} 18. f4
{[%clk 0:02:08.4]} 18... exf4 {[%clk 0:02:35]} 19. Bxf4 {[%clk 0:02:07.5]} 19...
Ne6 {[%clk 0:02:34.5]} 20. Rae1 {[%clk 0:01:58.5]} 20... d5 {[%clk 0:02:29.2]}
21. Ne3 {[%clk 0:01:49.3]} 21... Nxf4 {[%clk 0:02:20.5]} 22. Rxf4 {[%clk
0:01:48.8]} 22... dxe4 {[%clk 0:02:20.4]} 23. Nxe4 {[%clk 0:01:44.7]} 23... Rc8
{[%clk 0:02:15.6]} 24. Nf5 {[%clk 0:01:38.3]} 24... Bxe4 {[%clk 0:01:49.8]} 25.
Rfxe4 {[%clk 0:01:35]} 25... Bf6 {[%clk 0:01:49.1]} 26. Qe2 {[%clk 0:01:20.7]}
26... Rc7 {[%clk 0:01:36.4]} 27. Kh1 {[%clk 0:01:04.7]} 27... g6 {[%clk
0:01:35]} 28. Nh6+ {[%clk 0:01:00.7]} 28... Kg7 {[%clk 0:01:34.2]} 29. Ng4
{[%clk 0:01:00.1]} 29... Bd4 {[%clk 0:01:33]} 30. Qd2 {[%clk 0:00:52]} 30... f5
{[%clk 0:01:19.6]} 31. Qh6+ {[%clk 0:00:50.3]} 31... Kg8 {[%clk 0:01:19]} 32.
Rxd4 {[%clk 0:00:27.7]} 32... Qxd4 {[%clk 0:01:17.8]} 33. Ne5 {[%clk 0:00:21]}
33... Re7 {[%clk 0:01:04]} 34. Nf3 {[%clk 0:00:17.1]} 34... Rxe1+ {[%clk
0:01:02.5]} 35. Nxe1 {[%clk 0:00:16.9]} 35... Qxb2 {[%clk 0:00:56.2]} 36. Qe3
{[%clk 0:00:14.3]} 36... Qd4 {[%clk 0:00:48.4]} 37. Qe6+ {[%clk 0:00:13.3]}
37... Rf7 {[%clk 0:00:43.4]} 38. Nf3 {[%clk 0:00:12.1]} 38... Qf6 {[%clk
0:00:42]} 39. Qc8+ {[%clk 0:00:09.8]} 39... Kg7 {[%clk 0:00:41.4]} 40. Qxc5
{[%clk 0:00:09.5]} 40... Re7 {[%clk 0:00:33.7]} 41. Qxa5 {[%clk 0:00:08.2]}
41... Qc3 {[%clk 0:00:28.9]} 42. Qd5 {[%clk 0:00:06.5]} 42... Qc1+ {[%clk
0:00:27]} 43. Kh2 {[%clk 0:00:06.2]} 43... Qc7+ {[%clk 0:00:22.6]} 44. Kh1
{[%clk 0:00:05.5]} 44... Rd7 {[%clk 0:00:20.9]} 45. Qb5 {[%clk 0:00:02.8]} 45...
Qc1+ {[%clk 0:00:08.6]} 46. Kh2 {[%clk 0:00:03]} 46... Qf4+ {[%clk 0:00:03.4]}
47. Kh1 {[%clk 0:00:03.1]} 47... Qd6 {[%clk 0:00:02.4]} 0-1

[Event "Betsys MČR v online bleskovém šachu 2021"]
[Site "Chess.com"]
[Date "2021.04.17"]
[Round "9"]
[White "Simago"]
[Black "Hroch-hroch"]
[Result "1-0"]
[WhiteElo "2107"]
[BlackElo "2243"]
[TimeControl "180+1"]
[EndTime "10:31:22 PDT"]
[Termination "Uživatel Simago zvítězil na čas"]

1. e4 {[%clk 0:03:00.9]} 1... e5 {[%clk 0:02:58.8]} 2. Nf3 {[%clk 0:03:00.8]}
2... Nc6 {[%clk 0:02:54.9]} 3. Bb5 {[%clk 0:03:00.7]} 3... a6 {[%clk 0:02:51.5]}
4. Ba4 {[%clk 0:03:00.9]} 4... Nf6 {[%clk 0:02:50]} 5. d4 {[%clk 0:03:01.2]}
5... exd4 {[%clk 0:02:46.4]} 6. O-O {[%clk 0:03:00.3]} 6... Be7 {[%clk
0:02:39.3]} 7. e5 {[%clk 0:02:54.9]} 7... Ne4 {[%clk 0:02:35.5]} 8. Re1 {[%clk
0:02:51.8]} 8... Nc5 {[%clk 0:02:32.1]} 9. Bxc6 {[%clk 0:02:46.8]} 9... dxc6
{[%clk 0:02:31.3]} 10. Nxd4 {[%clk 0:02:44.6]} 10... O-O {[%clk 0:02:27.4]} 11.
Nc3 {[%clk 0:02:39]} 11... g6 {[%clk 0:01:48.6]} 12. Bh6 {[%clk 0:02:24.1]}
12... Re8 {[%clk 0:01:48.1]} 13. h3 {[%clk 0:02:14.7]} 13... Ne6 {[%clk
0:01:46.9]} 14. Nf3 {[%clk 0:02:04.1]} 14... Qxd1 {[%clk 0:01:41.8]} 15. Raxd1
{[%clk 0:02:01.8]} 15... Ng7 {[%clk 0:01:42.2]} 16. Ne4 {[%clk 0:01:42.8]} 16...
Bf5 {[%clk 0:01:38.8]} 17. g4 {[%clk 0:01:27.6]} 17... Be6 {[%clk 0:01:28.6]}
18. Nf6+ {[%clk 0:01:12.4]} 18... Bxf6 {[%clk 0:01:20.2]} 19. exf6 {[%clk
0:01:09.1]} 19... Bd5 {[%clk 0:01:18.4]} 20. Rxd5 {[%clk 0:00:47]} 20... cxd5
{[%clk 0:01:06.7]} 21. Bxg7 {[%clk 0:00:36.2]} 21... Rxe1+ {[%clk 0:01:02.7]}
22. Nxe1 {[%clk 0:00:35.7]} 22... Re8 {[%clk 0:01:02.6]} 23. Kf1 {[%clk
0:00:32.8]} 23... c5 {[%clk 0:00:59.2]} 24. Ng2 {[%clk 0:00:21.6]} 24... h5
{[%clk 0:00:39.3]} 25. gxh5 {[%clk 0:00:20.4]} 25... gxh5 {[%clk 0:00:38.9]} 26.
Nf4 {[%clk 0:00:20]} 26... Re5 {[%clk 0:00:37.9]} 27. h4 {[%clk 0:00:17]} 27...
c4 {[%clk 0:00:35.8]} 28. Bh6 {[%clk 0:00:16.2]} 28... b5 {[%clk 0:00:28.7]} 29.
c3 {[%clk 0:00:15.7]} 29... a5 {[%clk 0:00:27.8]} 30. Bg5 {[%clk 0:00:15.4]}
30... b4 {[%clk 0:00:27.3]} 31. Ne2 {[%clk 0:00:14.9]} 31... bxc3 {[%clk
0:00:24.7]} 32. bxc3 {[%clk 0:00:14.9]} 32... Re4 {[%clk 0:00:24.6]} 33. f3
{[%clk 0:00:11.2]} 33... Re8 {[%clk 0:00:23.3]} 34. Nf4 {[%clk 0:00:06.8]} 34...
Rd8 {[%clk 0:00:20.1]} 35. Ne2 {[%clk 0:00:05.7]} 35... Rb8 {[%clk 0:00:19.7]}
36. Nc1 {[%clk 0:00:03.4]} 36... Rb2 {[%clk 0:00:18.6]} 37. Ke1 {[%clk
0:00:02.7]} 37... Kh7 {[%clk 0:00:18.1]} 38. Kd1 {[%clk 0:00:02.1]} 38... Kg6
{[%clk 0:00:18.1]} 39. Ne2 {[%clk 0:00:01.5]} 39... Rxa2 {[%clk 0:00:16.9]} 40.
Nf4+ {[%clk 0:00:01.8]} 40... Kf5 {[%clk 0:00:15]} 41. Nxd5 {[%clk 0:00:02.7]}
41... a4 {[%clk 0:00:12]} 42. Ne3+ {[%clk 0:00:02.9]} 42... Ke6 {[%clk
0:00:08.6]} 43. Nxc4 {[%clk 0:00:03.8]} 43... Rg2 {[%clk 0:00:07.3]} 44. Kc1
{[%clk 0:00:03.7]} 44... Rh2 {[%clk 0:00:05.3]} 45. Kb1 {[%clk 0:00:03.7]} 45...
Rg2 {[%clk 0:00:03.8]} 46. Ka1 {[%clk 0:00:03.6]} 46... Rh2 {[%clk 0:00:03.7]}
47. Nb6 {[%clk 0:00:03.2]} 47... a3 {[%clk 0:00:01]} 48. Nc4 {[%clk 0:00:03.1]}
1-0